bitfinex/quotes_BTCUSD_20250618
["timestamp","ask_amount","ask_price","bid_price","bid_amount"]
[1750206036670,0.09533516,104800.0,104780.0,0.20062176]
[1750206036876,0.10487696,104800.0,104780.0,0.20062176]
[1750206037084,5.54776,104790.0,104780.0,0.20062176]
[1750206037299,5.05,104790.0,104780.0,0.39149788]
[1750206037675,0.15772,104790.0,104780.0,0.4112853]
[1750206037881,0.15772,104790.0,104780.0,0.46386843]
[1750206038083,0.37637145,104800.0,104780.0,0.42082901]
[1750206038211,0.34,104790.0,104780.0,0.29368725]
[1750206038423,0.34,104790.0,104780.0,0.38038539]
[1750206038848,0.34,104790.0,104780.0,0.42072901]
[1750206038849,0.8302,104790.0,104780.0,0.42072901]
[1750206039054,0.8302,104790.0,104780.0,0.41118539]
[1750206039255,0.8302,104790.0,104780.0,0.47330215]
[1750206039971,0.8302,104790.0,104780.0,0.27288232]
[1750206040177,0.8302,104790.0,104780.0,0.21076556]
[1750206040405,0.8302,104790.0,104780.0,0.21276556]
[1750206040614,0.8302,104790.0,104780.0,0.22230927]
[1750206041044,0.8302,104790.0,104780.0,0.20422176]
[1750206042334,0.8302,104790.0,104780.0,0.24755107]
[1750206042999,0.8302,104790.0,104780.0,0.20422176]
[1750206044361,0.8492846,104790.0,104780.0,0.20422176]
[1750206044798,0.3590846,104790.0,104780.0,0.20422176]
[1750206044978,0.36862722,104790.0,104780.0,0.20422176]
[1750206045212,0.34954216,104790.0,104780.0,0.20422176]
[1750206045427,0.36862694,104790.0,104780.0,0.20422176]
[1750206045672,0.36862685,104790.0,104780.0,0.24564219]
[1750206047538,0.35908441,104790.0,104780.0,0.24564219]
[1750206047723,0.36862685,104790.0,104780.0,0.24564219]
[1750206048414,0.35908441,104790.0,104780.0,0.24564219]
[1750206048640,0.02862685,104790.0,104780.0,0.24564219]
[1750206048846,5.05,104790.0,104780.0,0.24564219]
[1750206053588,0.0190845,104790.0,104780.0,0.16294176]
[1750206053803,0.3944737,104800.0,104780.0,0.16294176]
[1750206054059,0.00954207,104790.0,104780.0,0.0667]
[1750206054271,0.00954207,104790.0,104780.0,0.16294176]
[1750206054680,0.00954207,104790.0,104780.0,0.16094176]
[1750206054890,0.01908423,104790.0,104780.0,0.16094176]
[1750206055088,0.00954207,104790.0,104780.0,0.15994176]
[1750206055506,5.05,104790.0,104780.0,0.15994176]
[1750206055716,5.05,104790.0,104780.0,0.16194176]
[1750206055929,5.05,104790.0,104780.0,0.20517902]
[1750206056336,0.00954207,104790.0,104780.0,0.20617902]
[1750206057576,0.34,104790.0,104780.0,0.16294176]
[1750206058016,5.66504305,104790.0,104780.0,0.09924176]
[1750206058239,5.62361992,104780.0,104770.0,0.04136]
[1750206058449,5.42817731,104770.0,104760.0,0.04136]
[1750206058671,0.3495448,104760.0,104750.0,0.29364]
[1750206058901,0.4978,104760.0,104750.0,0.43171647]
[1750206059098,0.50734499,104760.0,104750.0,0.43171647]
[1750206059584,0.4978,104760.0,104750.0,0.43171647]
[1750206059997,0.4978,104760.0,104750.0,0.43471647]
[1750206059998,0.50734489,104760.0,104750.0,0.43471647]
[1750206060243,0.4978,104760.0,104750.0,0.43471647]
[1750206060457,0.4978,104760.0,104750.0,0.70157912]
[1750206060669,0.4978,104760.0,104750.0,0.50110181]
[1750206060881,0.4978,104760.0,104750.0,0.50410181]
[1750206061126,5.54792,104760.0,104750.0,0.50410181]
[1750206061345,0.34,104760.0,104750.0,0.46274181]
[1750206061589,0.34,104760.0,104750.0,0.50410181]
[1750206061801,0.49792,104760.0,104750.0,0.50410181]
[1750206062219,0.34,104760.0,104750.0,0.50410181]
[1750206062639,0.49796,104760.0,104750.0,0.52319478]
[1750206062848,0.49796,104760.0,104750.0,0.50410181]
[1750206063846,0.49796,104760.0,104750.0,0.51364834]
[1750206064047,0.49796,104760.0,104750.0,0.52319478]
[1750206064272,0.49796,104760.0,104750.0,0.50410181]
[1750206064625,0.49796,104760.0,104750.0,0.43771647]
[1750206065039,0.49796,104760.0,104750.0,0.447263]
[1750206065244,0.49796,104760.0,104750.0,0.65728648]
[1750206065653,0.49796,104760.0,104750.0,0.64774022]
[1750206065849,0.49796,104760.0,104750.0,0.65728657]
[1750206066050,0.49796,104760.0,104750.0,0.73447302]
[1750206066722,0.49796,104760.0,104750.0,0.75356554]
[1750206067144,0.49796,104760.0,104750.0,0.75356563]
[1750206067354,0.49796,104760.0,104750.0,0.64774022]
[1750206067746,0.49796,104760.0,104750.0,0.65728648]
[1750206068161,0.49796,104760.0,104750.0,0.65728657]
[1750206068580,0.98816,104760.0,104750.0,0.65728657]
[1750206069042,0.98816,104760.0,104750.0,0.64774022]
[1750206069258,0.98816,104760.0,104750.0,0.63819378]
[1750206069472,0.98816,104760.0,104750.0,0.64774022]
[1750206070094,0.98816,104760.0,104750.0,0.65728657]
[1750206070310,0.98816,104760.0,104750.0,0.64774022]
[1750206070527,0.8302,104760.0,104750.0,0.447263]
[1750206070738,0.8302,104760.0,104750.0,0.20827647]
[1750206071275,0.8302,104760.0,104750.0,0.21782282]
[1750206071496,0.8302,104760.0,104750.0,0.40875369]
[1750206071713,0.8302,104760.0,104750.0,0.46108648]
[1750206072144,0.8302,104760.0,104750.0,0.45154013]
[1750206072890,0.8302,104760.0,104750.0,0.40875369]
[1750206073089,0.8302,104760.0,104750.0,0.20827647]
[1750206074429,0.8302,104760.0,104750.0,0.217823]
[1750206074947,0.8302,104760.0,104750.0,0.22736944]
[1750206075503,0.8302,104760.0,104750.0,0.217823]
[1750206075714,0.8302,104760.0,104750.0,0.41830013]
[1750206076350,0.8302,104760.0,104750.0,0.49068056]
[1750206076565,0.8302,104760.0,104750.0,0.4811343]
[1750206076777,0.8302,104760.0,104750.0,0.49068056]
[1750206076985,0.8302,104760.0,104750.0,0.41830022]
[1750206077411,0.8302,104760.0,104750.0,0.42784657]
[1750206077652,0.8302,104760.0,104750.0,0.20827647]
[1750206077866,0.8302,104760.0,104750.0,0.39920725]
[1750206078100,0.8302,104760.0,104750.0,0.40875369]
[1750206078543,0.8302,104760.0,104750.0,0.20827647]
[1750206078972,0.8302,104760.0,104750.0,0.21782291]
[1750206079214,0.8302,104760.0,104750.0,0.20827647]
[1750206079438,0.8302,104760.0,104750.0,0.21782291]
[1750206079678,0.8302,104760.0,104750.0,0.22736926]
[1750206080123,0.8302,104760.0,104750.0,0.20827647]
[1750206080799,0.8302,104760.0,104750.0,0.217823]
[1750206081015,0.8302,104760.0,104750.0,0.22736935]
[1750206081428,0.8302,104760.0,104750.0,0.217823]
[1750206081638,0.8302,104760.0,104750.0,0.22736944]
[1750206082060,0.8302,104760.0,104750.0,0.48113393]
[1750206082488,0.8302,104760.0,104750.0,0.47158767]
[1750206082698,0.8302,104760.0,104750.0,0.217823]
[1750206082903,0.8302,104760.0,104750.0,0.22736935]
[1750206083086,0.8302,104760.0,104750.0,0.41830013]
[1750206083340,0.8302,104760.0,104750.0,0.4278463]
[1750206083575,0.8302,104760.0,104750.0,0.43739256]
[1750206083835,0.8302,104760.0,104750.0,0.5011813]
[1750206084070,0.4902,104760.0,104750.0,0.52526805]
[1750206085246,0.4902,104760.0,104750.0,0.46147931]
[1750206086214,0.49752,104780.0,104760.0,0.28254834]
[1750206086215,0.8302,104770.0,104760.0,0.28254834]
[1750206086430,0.8302,104770.0,104760.0,0.3787901]
[1750206086650,0.6567479,104770.0,104760.0,0.39333095]
[1750206086871,0.6567479,104770.0,104760.0,0.45990385]
[1750206087578,0.6567479,104770.0,104760.0,0.46090385]
[1750206087823,0.95589494,104770.0,104760.0,0.46190385]
[1750206090266,0.61589494,104770.0,104760.0,0.46190385]
[1750206091384,0.61589494,104770.0,104760.0,0.39533095]
[1750206092559,0.61589494,104770.0,104760.0,0.55281095]
[1750206097020,0.12569494,104770.0,104760.0,0.55281095]
[1750206100405,0.12569494,104770.0,104760.0,0.59409095]
[1750206106011,0.12569494,104770.0,104760.0,0.59413095]
[1750206107161,0.12569494,104770.0,104760.0,0.67459377]
[1750206115992,0.12569494,104770.0,104760.0,0.69055895]
[1750206117082,0.12569494,104770.0,104760.0,0.67459377]
[1750206119099,0.12569494,104770.0,104760.0,0.67359377]
[1750206120404,0.12569494,104770.0,104760.0,0.67659377]
[1750206121042,0.12569494,104770.0,104760.0,0.67559377]
[1750206121463,0.12569494,104770.0,104760.0,0.68059377]
[1750206126702,0.12569494,104770.0,104760.0,0.60037095]
[1750206129831,0.12569494,104770.0,104760.0,0.44277095]
[1750206130041,0.12569494,104770.0,104760.0,0.60041095]
[1750206138774,0.03,104780.0,104770.0,0.20997959]
[1750206138983,0.03,104780.0,104770.0,0.30622135]
[1750206140088,0.03,104780.0,104770.0,0.31122135]
[1750206140991,0.03,104780.0,104770.0,0.31122153]
[1750206141212,0.03,104780.0,104770.0,0.42057359]
[1750206141428,0.49476714,104790.0,104770.0,0.41102933]
[1750206141644,0.50430939,104790.0,104780.0,0.09624176]
[1750206142317,0.0635,104780.0,104770.0,0.002]
[1750206142539,0.07304298,104780.0,104770.0,0.09824176]
[1750206142755,0.07304298,104780.0,104770.0,0.09724176]
[1750206142978,0.0635,104780.0,104770.0,0.09624176]
[1750206143197,0.0635,104780.0,104770.0,0.09724176]
[1750206144100,0.0635,104780.0,104770.0,0.09624176]
[1750206144321,0.0635,104780.0,104770.0,0.11533109]
[1750206144508,0.0635,104780.0,104770.0,0.11733109]
[1750206145190,0.0635,104780.0,104770.0,0.10778647]
[1750206145402,0.0635,104780.0,104770.0,0.11078647]
[1750206145827,0.0635,104780.0,104770.0,0.10124176]
[1750206146922,0.0635,104780.0,104770.0,0.11078647]
[1750206147361,0.0635,104780.0,104770.0,0.10124176]
[1750206147576,0.0635,104780.0,104770.0,0.11078647]
[1750206148853,0.0635,104780.0,104770.0,0.32076977]
[1750206149083,0.47447391,104790.0,104770.0,0.37797455]
[1750206149320,5.05,104780.0,104770.0,0.37797455]
[1750206149528,5.05,104780.0,104770.0,0.38751881]
[1750206150000,5.05,104780.0,104770.0,0.38551881]
[1750206150205,5.05,104780.0,104770.0,0.31976986]
[1750206150671,5.05,104780.0,104770.0,0.31876986]
[1750206150879,5.05,104780.0,104770.0,0.32831421]
[1750206151092,5.05,104780.0,104770.0,0.33031376]
[1750206151355,5.05,104780.0,104770.0,0.39441376]
[1750206151578,5.05,104780.0,104770.0,0.3848695]
[1750206151795,5.05,104780.0,104770.0,0.39441367]
[1750206152011,5.05,104780.0,104770.0,0.40395774]
[1750206152227,5.05,104780.0,104770.0,0.39441367]
[1750206153107,5.05,104780.0,104770.0,0.3848695]
[1750206153320,5.05,104780.0,104770.0,0.39441376]
[1750206153543,5.05,104780.0,104770.0,0.40395793]
[1750206153789,5.05,104780.0,104770.0,0.39441376]
[1750206154225,5.05,104780.0,104770.0,0.40395793]
[1750206154896,5.05,104780.0,104770.0,0.45802794]
[1750206155563,5.05,104780.0,104770.0,0.37532524]
[1750206155996,5.05,104780.0,104770.0,0.31122524]
[1750206156211,5.05,104780.0,104770.0,0.33031385]
[1750206156412,5.05,104780.0,104770.0,0.32076959]
[1750206156873,5.05,104780.0,104770.0,0.31122524]
[1750206157298,5.05,104780.0,104770.0,0.32076959]
[1750206157512,5.05,104780.0,104770.0,0.31122524]
[1750206157722,5.05,104780.0,104770.0,0.3016808]
[1750206157974,5.05,104780.0,104770.0,0.31122542]
[1750206158193,5.05,104780.0,104770.0,0.32076995]
[1750206159424,5.05,104780.0,104770.0,0.33031439]
[1750206159629,5.05,104780.0,104770.0,0.32076995]
[1750206161075,5.05,104780.0,104770.0,0.31122542]
[1750206161328,5.05,104780.0,104770.0,0.32076995]
[1750206162603,5.05,104780.0,104770.0,0.11078647]
[1750206162820,5.05,104780.0,104770.0,0.12033109]
[1750206164019,5.05,104780.0,104770.0,0.12987562]
[1750206164652,5.05,104780.0,104770.0,0.11078647]
[1750206164930,4.8552139,104780.0,104770.0,0.12033109]
[1750206165170,4.855214,104780.0,104770.0,0.12033109]
[1750206165387,4.855214,104780.0,104770.0,0.12987562]
[1750206165640,4.855214,104780.0,104770.0,0.35193296]
[1750206165881,4.855214,104780.0,104770.0,0.33031439]
[1750206166127,4.855214,104780.0,104770.0,0.31122542]
[1750206166539,4.855214,104780.0,104770.0,0.33031439]
[1750206166750,4.855214,104780.0,104770.0,0.33985874]
[1750206166966,4.855214,104780.0,104770.0,0.33031439]
[1750206167176,4.855214,104780.0,104770.0,0.32076995]
[1750206167387,4.855214,104780.0,104770.0,0.31122542]
[1750206167590,4.855214,104780.0,104770.0,0.3016808]
[1750206167798,4.855214,104780.0,104770.0,0.11078647]
[1750206168010,4.855214,104780.0,104770.0,0.12033109]
[1750206168525,4.855214,104780.0,104770.0,0.10124176]
[1750206168772,4.87360363,104780.0,104770.0,0.10124176]
[1750206169021,5.46847709,104780.0,104770.0,0.005]
[1750206169297,5.26735899,104760.0,104750.0,0.00047471]
[1750206169538,5.4247988,104760.0,104750.0,0.09671647]
[1750206169752,5.415254,104760.0,104750.0,0.09671647]
[1750206171119,5.385254,104760.0,104750.0,0.09671647]
[1750206171555,5.385254,104760.0,104750.0,0.09871647]
[1750206172012,5.156868,104760.0,104750.0,0.09871647]
[1750206172673,5.156868,104760.0,104750.0,0.09971647]
[1750206174025,4.63637289,104760.0,104750.0,0.09971647]
[1750206174239,4.66787289,104760.0,104750.0,0.09971647]
[1750206174689,4.67741797,104760.0,104750.0,0.09971647]
[1750206174912,4.69650931,104760.0,104750.0,0.00347471]
[1750206175342,4.88261887,104760.0,104750.0,0.00347471]
[1750206175557,4.87307325,104760.0,104750.0,0.00347471]
[1750206175811,4.87307316,104760.0,104750.0,0.00347471]
[1750206177089,4.89927316,104760.0,104750.0,0.00347471]
[1750206177302,4.88972781,104760.0,104750.0,0.00347471]
[1750206177521,4.87307307,104760.0,104750.0,0.00347471]
[1750206177940,4.89927307,104760.0,104750.0,0.00347471]
[1750206178385,4.90881842,104760.0,104750.0,0.00347471]
[1750206179842,4.88014886,104760.0,104750.0,0.00347471]
[1750206180490,4.88969439,104760.0,104750.0,0.00347471]
[1750206180703,5.39197144,104760.0,104750.0,0.00347471]
[1750206181574,5.20105888,104760.0,104750.0,0.00347471]
[1750206181782,5.41356205,104760.0,104750.0,0.00147471]
[1750206181991,5.41356205,104760.0,104750.0,0.00047471]
[1750206182234,5.40401725,104760.0,104750.0,0.00047471]
[1750206182443,5.43021725,104760.0,104750.0,0.00047471]
[1750206182652,5.42067217,104760.0,104750.0,0.00047471]
[1750206183777,5.411127,104760.0,104750.0,0.00047471]
[1750206184670,5.44015378,104760.0,104750.0,0.00047471]
[1750206189959,5.41395378,104760.0,104750.0,0.00047471]
[1750206193529,5.38525278,104760.0,104750.0,0.00047471]
[1750206197943,5.40809254,104760.0,104750.0,0.00047471]
[1750206198360,5.37659254,104760.0,104750.0,0.00047471]
[1750206198583,5.17613454,104760.0,104750.0,0.03367471]
[1750206198796,5.18567998,104760.0,104750.0,0.03367471]
[1750206198995,5.37659254,104760.0,104750.0,0.03367471]
[1750206201595,5.3670471,104760.0,104750.0,0.03367471]
[1750206206325,5.3670471,104760.0,104750.0,0.06607471]
[1750206207046,5.14710776,104760.0,104750.0,0.06607471]
[1750206207250,5.15290332,104760.0,104750.0,0.06607471]
[1750206207901,5.16244885,104760.0,104750.0,0.06607471]
[1750206208127,5.35715349,104760.0,104750.0,0.03367471]
[1750206208351,5.41632578,104760.0,104750.0,0.00047471]
[1750206212184,5.38512578,104760.0,104750.0,0.03217471]
[1750206213109,5.37558043,104760.0,104750.0,0.03217471]
[1750206221359,5.37474043,104760.0,104750.0,0.03217471]
[1750206224122,5.15370381,104760.0,104750.0,0.03217471]
[1750206224332,5.15370443,104760.0,104750.0,0.03217471]
[1750206227255,4.60542913,104750.0,104740.0,0.0313]
[1750206227471,4.78567118,104750.0,104740.0,0.03144246]
[1750206227691,4.78567118,104750.0,104740.0,0.00014246]
[1750206228339,4.78567118,104750.0,104740.0,0.03214246]
[1750206229024,4.78867118,104750.0,104740.0,0.03214246]
[1750206229273,4.82077118,104750.0,104740.0,0.00014246]
[1750206229908,4.78967118,104750.0,104740.0,0.00014246]
[1750206232954,4.78967118,104750.0,104740.0,0.03214246]
[1750206233243,4.63231118,104750.0,104740.0,0.03214246]
[1750206233474,4.7991943,104750.0,104740.0,0.03214246]
[1750206245561,4.7991943,104750.0,104740.0,0.06394246]
[1750206252343,4.7991943,104750.0,104740.0,0.03214246]
[1750206252709,4.7991943,104750.0,104730.0,0.0305]
[1750206252710,4.94544827,104740.0,104730.0,0.0305]
[1750206252925,5.13517435,104740.0,104730.0,0.0623474]
[1750206253141,5.12562718,104740.0,104730.0,0.0623474]
[1750206253365,4.76781091,104740.0,104730.0,0.0623474]
[1750206253591,4.92136625,104740.0,104730.0,0.0623474]
[1750206253781,4.94046042,104740.0,104730.0,0.0623474]
[1750206254003,4.75549872,104740.0,104730.0,0.0623474]
[1750206254218,4.7765927,104740.0,104730.0,0.0623474]
[1750206254426,4.9339127,104740.0,104730.0,0.0623474]
[1750206254630,4.92833691,104740.0,104730.0,0.15858916]
[1750206254767,4.93788381,104740.0,104730.0,0.19641125]
[1750206255806,4.93788381,104740.0,104730.0,0.15858916]
[1750206256243,4.93788372,104740.0,104730.0,0.15858916]
[1750206256437,4.92833691,104740.0,104730.0,0.15858916]
[1750206256636,4.77101691,104740.0,104730.0,0.15858916]
[1750206256843,0.51383819,104740.0,104730.0,0.15858916]
[1750206257067,0.51383819,104740.0,104730.0,0.19736613]
[1750206257803,1.00403819,104740.0,104730.0,0.19736613]
[1750206258008,0.84671819,104740.0,104730.0,0.19736613]
[1750206258248,0.84671819,104740.0,104730.0,0.15858916]
[1750206258460,1.00403819,104740.0,104730.0,0.15858916]
[1750206259776,1.01358491,104740.0,104730.0,0.15858916]
[1750206260199,1.02313181,104740.0,104730.0,0.15858916]
[1750206261299,1.01358491,104740.0,104730.0,0.15858916]
[1750206261517,0.86581181,104740.0,104730.0,0.15858916]
[1750206261942,1.02313172,104740.0,104730.0,0.15858916]
[1750206262607,1.05106825,104740.0,104730.0,0.15858916]
[1750206262820,1.23317534,104740.0,104730.0,0.15858916]
[1750206263476,1.24272279,104740.0,104730.0,0.15858916]
[1750206263725,1.04222633,104740.0,104730.0,0.15858916]
[1750206264163,5.62858108,104740.0,104730.0,0.0305474]
[1750206264373,5.6419219,104740.0,104730.0,0.0305474]
[1750206267749,5.6706299,104740.0,104730.0,0.0305474]
[1750206267961,5.3306299,104740.0,104730.0,0.0305474]
[1750206269031,5.30774191,104740.0,104730.0,0.0305474]
[1750206269663,4.81754191,104740.0,104730.0,0.0305474]
[1750206269882,4.84041939,104740.0,104730.0,0.0305474]
[1750206271595,4.81754191,104740.0,104730.0,0.0305474]
[1750206272244,4.84041601,104740.0,104730.0,0.0305474]
[1750206274873,4.81754191,104740.0,104730.0,0.0305474]
[1750206276190,4.81754191,104740.0,104730.0,0.0628474]
[1750206277908,4.84041055,104740.0,104730.0,0.0628474]
[1750206285173,4.47304683,104740.0,104730.0,0.0628474]
[1750206285387,4.61693779,104740.0,104730.0,0.0628474]
[1750206285596,4.6169377,104740.0,104730.0,0.0628474]
[1750206286239,4.62648496,104740.0,104730.0,0.0628474]
[1750206286632,4.6169377,104740.0,104730.0,0.0628474]
[1750206287057,4.9569377,104740.0,104730.0,0.0628474]
[1750206287279,4.96648487,104740.0,104730.0,0.0603674]
[1750206287506,4.407952,104740.0,104730.0,0.1626459]
[1750206287724,4.565232,104740.0,104730.0,0.1626459]
[1750206287936,0.16028,104740.0,104730.0,0.1626459]
[1750206291265,0.16982663,104740.0,104730.0,0.15660916]
[1750206291683,0.18236668,104740.0,104730.0,0.15660916]
[1750206292949,0.17282005,104740.0,104730.0,0.15660916]
[1750206293126,0.16024,104740.0,104730.0,0.15660916]
[1750206293807,0.003,104740.0,104730.0,0.15660916]
[1750206294052,0.003,104740.0,104730.0,0.46690002]
[1750206294260,0.003,104740.0,104730.0,0.47905375]
[1750206294873,0.001,104740.0,104730.0,0.44142959]
[1750206295083,0.69516629,104760.0,104750.0,0.0648]
[1750206295293,0.68562067,104760.0,104750.0,0.16104176]
[1750206295509,0.69516629,104760.0,104750.0,0.16104176]
[1750206295711,0.52838067,104760.0,104750.0,0.16104176]
[1750206296144,0.68562067,104760.0,104750.0,0.16104176]
[1750206296746,0.64744,104760.0,104750.0,0.16104176]
[1750206296949,0.67896591,104760.0,104750.0,0.16104176]
[1750206297508,0.67896591,104760.0,104750.0,0.16204176]
[1750206297931,0.67896591,104760.0,104750.0,0.16304176]
[1750206298565,0.68851117,104760.0,104750.0,0.16304176]
[1750206300134,0.19831117,104760.0,104750.0,0.16304176]
[1750206300383,0.20785661,104760.0,104750.0,0.16304176]
[1750206300603,0.21740223,104760.0,104750.0,0.16304176]
[1750206300841,0.19831117,104760.0,104750.0,0.16304176]
[1750206301079,0.20785652,104760.0,104750.0,0.16304176]
[1750206301993,0.19831117,104760.0,104750.0,0.16304176]
[1750206303310,0.20785652,104760.0,104750.0,0.16304176]
[1750206303521,4.62235396,104760.0,104750.0,0.16304176]
[1750206303943,4.62235478,104760.0,104750.0,0.13014176]
[1750206304181,5.14372217,104760.0,104750.0,0.0339]
[1750206304394,5.12463156,104760.0,104750.0,0.002]
[1750206304828,5.12463156,104760.0,104750.0,0.001]
[1750206305286,5.12563156,104760.0,104750.0,0.0311]
[1750206305743,5.11608612,104760.0,104750.0,0.0301]
[1750206307571,5.11708612,104760.0,104750.0,0.0301]
[1750206308829,4.94526372,104760.0,104750.0,0.0301]
[1750206309033,4.93571828,104760.0,104750.0,0.0301]
[1750206309240,4.94526363,104760.0,104750.0,0.0618]
[1750206309491,4.93571819,104760.0,104750.0,0.0618]
[1750206309732,4.9357181,104760.0,104750.0,0.0618]
[1750206310154,4.92617302,104760.0,104750.0,0.0618]
[1750206310370,4.91662803,104760.0,104750.0,0.0618]
[1750206310828,4.91658803,104760.0,104750.0,0.18522607]
[1750206311049,4.91658803,104760.0,104750.0,0.15804176]
[1750206311969,4.904152,104760.0,104750.0,0.15804176]
[1750206312930,4.92324225,104760.0,104750.0,0.15804176]
[1750206313335,4.92324216,104760.0,104750.0,0.15804176]
[1750206313768,4.91369699,104760.0,104750.0,0.15804176]
[1750206313967,4.92324216,104760.0,104750.0,0.15804176]
[1750206314172,4.97604551,104760.0,104750.0,0.0301]
[1750206314526,5.12370052,104760.0,104750.0,0.0301]
[1750206314958,5.11415535,104760.0,104750.0,0.0301]
[1750206315174,4.744952,104750.0,104740.0,0.0648]
[1750206315389,4.41449817,104750.0,104740.0,0.16104176]
[1750206315601,4.43358997,104750.0,104740.0,0.16104176]
[1750206316433,4.43358997,104750.0,104740.0,0.16204176]
[1750206316644,4.42404371,104750.0,104740.0,0.16204176]
[1750206317092,4.92378988,104750.0,104740.0,0.16204176]
[1750206317301,4.92378979,104750.0,104740.0,0.16204176]
[1750206318175,4.92378979,104750.0,104740.0,0.16304176]
[1750206318791,5.26378979,104750.0,104740.0,0.16304176]
[1750206319348,5.2637897,104750.0,104740.0,0.16304176]
[1750206319766,5.25424371,104750.0,104740.0,0.16304176]
[1750206319965,5.24469781,104750.0,104740.0,0.16304176]
[1750206320386,5.2542438,104750.0,104740.0,0.16304176]
[1750206321229,5.24469781,104750.0,104740.0,0.16304176]
[1750206321467,5.2542438,104750.0,104740.0,0.16304176]
[1750206321632,5.26378988,104750.0,104740.0,0.16304176]
[1750206321839,5.41144371,104750.0,104740.0,0.16304176]
[1750206322291,5.42098979,104750.0,104740.0,0.16304176]
[1750206322730,5.40189781,104750.0,104740.0,0.16304176]
[1750206322954,5.392352,104750.0,104740.0,0.16304176]
[1750206323879,5.40189781,104750.0,104740.0,0.16304176]
[1750206324324,5.392352,104750.0,104740.0,0.16304176]
[1750206324618,5.40189781,104750.0,104740.0,0.16304176]
[1750206324979,5.185051,104750.0,104740.0,0.16304176]
[1750206325434,5.19459671,104750.0,104740.0,0.20637858]
[1750206325656,5.185051,104750.0,104740.0,0.20637858]
[1750206325889,0.9874,104750.0,104740.0,0.20637858]
[1750206326133,0.9874,104750.0,104740.0,0.21592603]
[1750206326358,0.8302,104750.0,104740.0,0.40687494]
[1750206326591,0.6474,104750.0,104740.0,0.41642202]
[1750206326832,0.6474,104750.0,104740.0,0.43551591]
[1750206327062,0.4902,104750.0,104740.0,0.44506272]
[1750206327298,0.64736,104750.0,104740.0,0.44506272]
[1750206330268,0.64736,104750.0,104740.0,0.43551591]
[1750206330906,0.64736,104750.0,104740.0,0.44506272]
[1750206331156,0.64736,104750.0,104740.0,0.41642202]
[1750206331378,0.64736,104750.0,104740.0,0.17258911]
[1750206332486,0.64736,104750.0,104740.0,0.37308529]
[1750206333146,0.64736,104750.0,104740.0,0.37308538]
[1750206333367,0.64736,104750.0,104740.0,0.39217945]
[1750206334673,0.64736,104750.0,104740.0,0.38263246]
[1750206335348,0.64736,104750.0,104740.0,0.37308538]
[1750206335567,0.64736,104750.0,104740.0,0.38263246]
[1750206336005,0.64736,104750.0,104740.0,0.39217945]
[1750206336236,0.64736,104750.0,104740.0,0.40172635]
[1750206336478,0.64736,104750.0,104740.0,0.39217945]
[1750206337107,0.64736,104750.0,104740.0,0.40172635]
[1750206337321,0.64736,104750.0,104740.0,0.40172581]
[1750206337763,0.64736,104750.0,104740.0,0.46511184]
[1750206339487,0.64736,104750.0,104740.0,0.40172581]
[1750206340887,0.4902,104750.0,104740.0,0.40172581]
[1750206341099,0.64736,104750.0,104740.0,0.40172581]
[1750206342099,0.64736,104750.0,104740.0,0.41391257]
[1750206342925,0.64736,104750.0,104740.0,0.40172581]
[1750206343103,0.64736,104750.0,104740.0,0.46511184]
[1750206345722,0.64736,104750.0,104740.0,0.50619184]
[1750206346347,0.44219895,104750.0,104740.0,0.50619184]
[1750206348245,0.28503895,104750.0,104740.0,0.50619184]
[1750206348456,0.44215895,104750.0,104740.0,0.50619184]
[1750206349302,0.0125826,104770.0,104760.0,0.00954562]
[1750206349505,0.15712,104770.0,104760.0,0.16868738]
[1750206349715,0.15712,104770.0,104760.0,0.15914176]
[1750206350132,4.197651,104770.0,104760.0,0.15914176]
[1750206350324,0.15712,104770.0,104760.0,0.15914176]
[1750206350539,0.15712,104770.0,104760.0,0.19796608]
[1750206350940,0.005,104770.0,104760.0,0.17823291]
[1750206351148,0.16212,104770.0,104760.0,0.17823291]
[1750206351356,0.16076,104770.0,104760.0,0.17823291]
[1750206351562,0.16076,104770.0,104760.0,0.16868738]
[1750206352182,0.16076,104770.0,104760.0,0.17823291]
[1750206352389,0.16076,104770.0,104760.0,0.16868738]
[1750206352861,0.16076,104770.0,104760.0,0.15914176]
[1750206354364,0.16076,104770.0,104760.0,0.19796609]
[1750206354571,0.16076,104770.0,104760.0,0.15914176]
[1750206356623,0.17030389,104770.0,104760.0,0.12854176]
[1750206357051,0.16076,104770.0,104760.0,0.12854176]
[1750206357271,0.17030398,104770.0,104760.0,0.12854176]
[1750206357711,0.16666398,104770.0,104760.0,0.12854176]
[1750206358127,0.15712,104770.0,104760.0,0.12854176]
[1750206358339,0.15712,104770.0,104760.0,0.13054176]
[1750206358543,0.15712,104770.0,104760.0,0.13154176]
[1750206359407,0.21785277,104770.0,104760.0,0.09924176]
[1750206359620,0.21785268,104770.0,104760.0,0.09924176]
[1750206359846,4.42504821,104770.0,104760.0,0.003]
[1750206360059,4.97509856,104770.0,104760.0,0.003]
[1750206360304,4.9655543,104770.0,104760.0,0.003]
[1750206361048,4.9655543,104770.0,104740.0,0.30407589]
[1750206361049,0.00954581,104750.0,104740.0,0.10358]
[1750206361262,0.15708,104750.0,104740.0,0.20936911]
[1750206361470,0.15708,104750.0,104740.0,0.19982176]
[1750206361878,0.15708,104750.0,104740.0,0.20936921]
[1750206362296,0.15708,104750.0,104740.0,0.22091656]
[1750206362511,0.15708,104750.0,104740.0,0.21136921]
[1750206362726,0.15708,104750.0,104740.0,0.22491656]
[1750206362935,0.15708,104750.0,104740.0,0.20582176]
[1750206364627,4.354731,104750.0,104740.0,0.17582176]
[1750206365281,4.3738227,104750.0,104740.0,0.13474176]
[1750206365512,4.36427671,104750.0,104740.0,0.13474176]
[1750206365728,4.37382261,104750.0,104740.0,0.13474176]
[1750206366385,3.96906761,104750.0,104740.0,0.13474176]
[1750206367500,4.12614761,104750.0,104740.0,0.13474176]
[1750206368881,4.13569369,104750.0,104740.0,0.13474176]
[1750206369985,4.12614761,104750.0,104740.0,0.13474176]
[1750206370197,4.11660171,104750.0,104740.0,0.13474176]
[1750206370416,4.12614761,104750.0,104740.0,0.13474176]
[1750206371529,4.13569369,104750.0,104740.0,0.13474176]
[1750206372465,4.1547863,104750.0,104740.0,0.13474176]
[1750206372679,4.15478621,104750.0,104740.0,0.13474176]
[1750206373384,4.14523986,104750.0,104740.0,0.13474176]
[1750206373602,4.14523986,104750.0,104740.0,0.10224176]
[1750206375559,4.15478621,104750.0,104740.0,0.10224176]
[1750206376014,4.14523986,104750.0,104740.0,0.10224176]
[1750206376921,4.15478621,104750.0,104740.0,0.10224176]
[1750206378700,4.1452405,104750.0,104740.0,0.10224176]